Cogmind - Beta 16 @@@ ROGUE MODE // 2025.12.10 @ 17:26:14 Player: souux Result: Escaped! Performance ------------- Evolutions (9) 4500 Regions Visited (18) 3600 Robots Destroyed (238) 1190 Value Destroyed (12317) 12317 Prototype IDs (48) 960 Alien Tech Used (2) 400 Bonus (10966) 10966 TOTAL SCORE: 33933 Bonus ------- Triggered High Security 500 High Alert Combat Kills 4810 Follower Combat Kills 1151 Entered DSFs 1000 Aligned with FarCom 300 Acquired ECA 300 Met Zhirov 300 Win 3000 Friendly Fire -395 Cogmind --------- Core Integrity 958/1600 Matter 186/300 Energy 99/100 System Corruption 34% Temperature Cool (0) Movement Core (50) Location To Epsilon Eridani Parts ------- > --- POWER (2) -------- (None) > --- PROPULSION (8) --- Armored Heavy Treads Armored Heavy Treads Centrium Heavy Treads > --- UTILITY (11) ----- Experimental Signal Interpreter Graphene Brace > --- WEAPON (4) ------- (None) > --- INVENTORY (5) ---- Quantum Reactor Quantum Reactor Transmission Jammer Improved Plasma Cutter Axe Peak State ------------ > --- POWER ------------ Quantum Reactor Quantum Reactor > --- PROPULSION ------- Advanced Heavy Siege Treads Advanced Heavy Siege Treads Advanced Heavy Siege Treads Advanced Heavy Siege Treads > --- UTILITY ---------- Advanced Heat Sink Advanced Cooling System Huge Storage Unit Enhanced Optical Array Experimental Signal Interpreter Encrypted Comm Array Advanced Targeting Computer Core Analyzer Advanced Particle Charger Layered Light Armor Plating Graphene Brace > --- WEAPON ----------- Enhanced Quantum Rifle Enhanced Quantum Rifle Enhanced Quantum Rifle Enhanced Nova Cannon > --- INVENTORY -------- Reinforced Fission Core Reinforced Fission Core Heavy Treads Heavy Treads Armored Heavy Treads Armored Heavy Treads Advanced Heavy Siege Treads Advanced Heat Sink Structural Scanner Precision Energy Filter Quantum Capacitor Transmission Jammer Transdimensional Reconstructor Integrated Reactor Micro-nuke Launcher Improved Plasma Cutter Axe [Rating: 197] Favorites ----------- Power Quantum Reactor Engine Improved Deuterium Engine Power Core Reinforced Fission Core Reactor Quantum Reactor Propulsion Advanced Heavy Siege Treads Treads Advanced Heavy Siege Treads Leg Aluminum Leg Wheel Armored Huge Wheel Utility Huge Storage Unit Device Advanced Heat Sink Storage Huge Storage Unit Processor Enhanced Optical Array Hackware Improved Hacking Suite Protection Hardened Heavy Armor Plating Weapon Enhanced Nova Cannon Energy Gun Enhanced Quantum Rifle Energy Cannon Enhanced Nova Cannon Ballistic Gun Light Assault Rifle Ballistic Cannon Slug Cannon Launcher Grenade Launcher Special Weapon Field Lobotomy Kit Build | -11 -10 -10 -10 -9 -8 -7 -6 -6 -5 -4 -4 -4 -4 -3 -3 -3 -2 -1 ------- Run | Yrd Mat Min Exi Min Mat Fac Fac DSF Fac Fac Upp Upp Zhi Pro Res DSF Res Acc Slots Evolved 18 | . . . . . 4 2 2 . 2 2 . . . . 2 . 2 2 Power 1 | . . . . . . . . . 1 . . . . . . . . . Propulsion 6 | . . . . . 2 . 2 . . . . . . . . . 2 . Utility 9 | . . . . . 2 2 . . 1 1 . . . . 2 . . 1 Weapon 2 | . . . . . . . . . . 1 . . . . . . . 1 Parts Attached 185 | 7 17 9 . 1 24 10 2 12 8 4 3 2 2 10 2 13 16 43 Power 18 | 1 1 2 . . 3 . . 1 1 . . . . 2 . 1 2 4 Engine 7 | 1 1 1 . . 3 . . 1 . . . . . . . . . . Core 4 | . . 1 . . . . . . 1 . . . . 1 . 1 . . Reactor 7 | . . . . . . . . . . . . . . 1 . . 2 4 Propulsion 50 | 2 9 1 . . 5 3 1 4 2 . . . 1 2 2 5 2 11 Treads 36 | . 3 1 . . 2 2 1 4 . . . . 1 2 2 5 2 11 Leg 2 | . 2 . . . . . . . . . . . . . . . . . Wheel 12 | 2 4 . . . 3 1 . . 2 . . . . . . . . . Hover . | . . . . . . . . . . . . . . . . . . . Flight . | . . . . . . . . . . . . . . . . . . . Utility 78 | 2 4 5 . . 9 5 1 7 4 4 2 . 1 5 . 4 6 19 Device 43 | 1 2 4 . . 6 1 . 3 3 1 2 . . 2 . 3 3 12 Storage 4 | 1 2 . . . . . . . . . . . . . . . . 1 Processor 10 | . . . . . 1 1 1 1 . 2 . . . 1 . . 2 1 Hackware 1 | . . . . . . . . . . 1 . . . . . . . . Protection 20 | . . 1 . . 2 3 . 3 1 . . . 1 2 . 1 1 5 Artifact . | . . . . . . . . . . . . . . . . . . . Weapon 39 | 2 3 1 . 1 7 2 . . 1 . 1 2 . 1 . 3 6 9 Energy Gun 15 | 1 1 1 . . 2 . . . 1 . . 2 . . . 3 4 . Energy Cannon 16 | . . . . . 3 2 . . . . . . . 1 . . 1 9 Ballistic Gun 2 | 1 1 . . . . . . . . . . . . . . . . . Ballistic Cannon 1 | . . . . 1 . . . . . . . . . . . . . . Launcher 4 | . 1 . . . 2 . . . . . . . . . . . 1 . Special Weapon 1 | . . . . . . . . . . . 1 . . . . . . . Impact Weapon . | . . . . . . . . . . . . . . . . . . . Slashing Weapon . | . . . . . . . . . . . . . . . . . . . Piercing Weapon . | . . . . . . . . . . . . . . . . . . . Special Melee Weapon . | . . . . . . . . . . . . . . . . . . . Unidentified Prototypes 16 | . . 1 . . 4 1 . . 2 . . . 1 . . . 1 6 Parts Lost 36 | . 2 . . . 6 . . 1 1 . . 1 . 5 . . . 20 Power 3 | . . . . . 1 . . . . . . . . 1 . . . 1 Propulsion 6 | . . . . . 1 . . . . . . 1 . . . . . 4 Utility 17 | . . . . . 3 . . . . . . . . 3 . . . 11 Weapon 10 | . 2 . . . 1 . . 1 1 . . . . 1 . . . 4 Highest Loss Streak 12 | . 2 . . . 3 . . 1 1 . . 1 . 3 . . . 12 To Critical Strikes . | . . . . . . . . . . . . . . . . . . . Average Backups 20 | 5 15 19 21 24 21 21 21 24 24 24 24 24 24 21 18 19 19 19 Power 1 | . 1 . 2 2 . . 1 . . 1 1 1 2 1 1 2 2 2 Propulsion 5 | 3 7 8 8 8 5 3 2 5 6 6 6 5 4 2 2 4 3 3 Utility 8 | . 4 8 9 9 9 10 12 13 12 14 14 13 13 10 5 4 5 6 Weapon 3 | . 2 2 2 3 4 5 5 3 2 1 1 1 1 2 4 4 4 3 Tool/Special . | . . . . . . . . . . . . . . . . . . . Unused Backups 36 | . 1 1 . 1 9 2 . 1 2 1 . 1 1 . . 7 2 7 Power 7 | . . . . . 3 . . . . 1 . . . . . . 1 2 Propulsion 6 | . . . . . 2 . . 1 1 . . . . . . 2 . . Utility 14 | . 1 1 . 1 3 2 . . 1 . . . 1 . . 2 1 1 Weapon 8 | . . . . . 1 . . . . . . 1 . . . 3 . 3 Tool/Special 1 | . . . . . . . . . . . . . . . . . . 1 Average Slot Usage (%) 86 | . 100 100 100 100 84 83 85 86 82 80 78 77 78 88 97 87 79 81 Engine 5 | . 14 9 14 14 8 7 6 6 5 5 5 5 5 2 . . . . Core 2 | . . 4 . . . . . . 4 5 5 5 5 5 4 6 2 1 Reactor 2 | . . . . . . . . . . . . . . 2 4 1 5 6 Treads 9 | . . 12 . . 2 . 12 13 . . . 2 8 21 26 17 16 15 Wheel 11 | . 24 14 28 27 20 14 13 13 22 21 21 18 11 3 . . . . Device 15 | . 14 7 14 14 17 14 13 12 17 16 10 10 10 9 18 21 18 23 Storage 7 | . 14 14 14 14 9 7 6 6 5 5 5 5 5 5 4 4 4 3 Processor 7 | . . . . . 4 10 12 13 7 5 10 10 10 10 9 9 14 11 Protection 4 | . . 6 . . 4 10 6 6 4 5 5 5 5 9 14 10 3 3 Energy Gun 5 | . 8 7 14 14 . . . . 2 5 5 5 10 10 9 10 11 1 Energy Cannon 7 | . . . . . 16 14 13 10 8 10 9 9 5 4 4 3 1 13 Ballistic Gun 3 | . 18 16 14 . . . . . . . . . . . . . . . Launcher 1 | . 1 4 . 11 . . . 1 . . . . . . . . . . Peak Build Rating 197 | 7 8 17 11 14 41 46 48 63 72 88 96 100 105 111 120 159 186 197 Average Rating 93 | 5 7 10 10 11 33 43 47 55 66 80 90 93 102 105 114 138 179 185 On Entrance 66 | . 7 8 10 11 14 39 45 48 60 72 88 91 100 105 105 120 159 180 Avg Prop Armor Cover (%) 11 | . . . . . . 14 12 11 11 . . 5 6 8 . 9 17 46 Naked Turns . | . . . . . . . . . . . . . . . . . . . Heaviest Build 214 | 14 90 92 89 95 112 118 109 116 139 146 144 146 146 157 157 173 158 214 Greatest Support 320 | 20 32 40 32 32 56 56 56 56 82 82 82 82 66 166 191 240 320 320 Greatest Overweight (x) 4 | . 3 2 2 2 3 4 1 2 2 1 1 2 2 2 . 1 . . Average Overweight (x) 1 | . 1 2 2 2 1 1 1 1 1 1 1 1 2 . . . . . Largest Inventory Capacity 25 | 8 25 25 25 25 25 25 25 25 25 25 25 25 25 25 25 25 25 25 Average Capacity 24 | 7 21 25 25 25 25 25 25 25 25 25 25 25 25 25 25 25 25 24 Most Carried 25 | 8 18 21 22 25 25 25 24 25 25 25 25 25 25 25 23 25 25 25 Average Carried 22 | 5 15 19 21 24 23 23 21 24 24 24 24 24 24 22 20 23 24 23 Final Capacity 25 | 8 25 25 25 25 25 25 25 25 25 25 25 25 25 25 25 25 25 5 Final Carried 25 | 8 17 21 22 25 21 23 24 25 25 25 25 25 25 21 22 25 25 5 Class Distribution -------------------- 39% | Mutant 18% | Scavenger-Tank 9% | Infiltrator-Skirmisher 7% | Skirmisher 6% | Scavenger-Gunner 5% | Tank 4% | Commander-Skirmisher 3% | Gunner Dominant Class ---------------- Mutant | -10/Materials Mutant | -10/Mines Mutant | -10/Exiles Mutant | -9/Mines Mutant | -8/Materials Mutant | -7/Factory Skirmisher | -6/Factory Mutant | -6/DSF Infiltrator-Skirmisher | -5/Factory Infiltrator-Skirmisher | -4/Factory Skirmisher | -4/Upper Caves Commander-Skirmisher | -4/Upper Caves Gunner | -4/Zhirov Scavenger-Tank | -3/Proximity Caves Scavenger-Tank | -3/Research Scavenger-Tank | -3/DSF Infiltrator-Skirmisher | -2/Research Scavenger-Tank | -1/Access Resources | -11 -10 -10 -10 -9 -8 -7 -6 -6 -5 -4 -4 -4 -4 -3 -3 -3 -2 -1 ----------- Run | Yrd Mat Min Exi Min Mat Fac Fac DSF Fac Fac Upp Upp Zhi Pro Res DSF Res Acc Matter Collected 5208 | 292 420 338 . 338 674 268 54 253 191 . 130 55 30 250 30 231 488 1166 Remotely . | . . . . . . . . . . . . . . . . . . . Salvage Created 13090 | 128 444 461 . 126 798 283 . 785 213 . 228 172 389 746 116 770 655 6776 Parts 551 | 7 27 25 . 13 41 21 . 31 10 . . 4 5 22 3 32 52 258 Haulers Intercepted 7 | . 2 . . . 2 . . . 1 . . . . . 1 . . 1 Recyclers Shooed 5 | . 1 . . . . . . . . . . . . . . . 2 2 Parts Field Recycled . | . . . . . . . . . . . . . . . . . . . Retrieved Matter . | . . . . . . . . . . . . . . . . . . . Parts Self-Destructed 52 | . . . . . . . . . . . 10 9 4 29 . . . . Prevented 3 | . . . . . . . . . . . . . . 3 . . . . Parts Restored . | . . . . . . . . . . . . . . . . . . . Kills | -11 -10 -10 -10 -9 -8 -7 -6 -6 -5 -4 -4 -4 -4 -3 -3 -3 -2 -1 ------- Run | Yrd Mat Min Exi Min Mat Fac Fac DSF Fac Fac Upp Upp Zhi Pro Res DSF Res Acc Combat Hostiles Destroyed 197 | . 9 15 . 7 19 6 . 8 5 . 1 1 . 10 . 9 12 95 Guns 45 | . 4 11 . . . . . . . . . . . 9 . 6 8 7 Cannons 88 | . . . . 3 8 3 . 4 2 . 1 1 . . . 2 1 63 AOE 52 | . 5 3 . 4 11 3 . 4 3 . . . . . . . 3 16 Classes Destroyed 19 | 2 4 1 . 2 1 2 . 2 . . 2 . . 1 . . . 2 Worker 10 | . . . . 1 1 2 . . . . . . . . . . 2 4 Builder 11 | . . . . . . 2 . . . . . . . . . . 4 5 Tunneler 2 | 2 . . . . . . . . . . . . . . . . . . Hauler 7 | . 2 . . . 2 . . . 1 . . . . . 1 . . 1 Recycler 4 | 1 2 . . . . . . . . . . . . . . . . 1 Carrier 1 | . . . . . . . . . . . . . . . . . . 1 Watcher 6 | . 3 . . . 1 1 . . . . . . . . . . . 1 Swarmer 42 | . 7 3 . 4 3 3 . . 4 . . . . 1 . . 4 13 Grunt 67 | . 2 11 . 2 8 . . 3 . . . 1 . 3 . 4 . 33 Brawler 5 | . . . . . . . . . . . . . . 1 . . . 4 Duelist 14 | . . . . 1 4 . . . . . . . . 3 . . . 6 Protector 1 | . . . . . . . . . . . . . . . . . . 1 Sentry 13 | . . . . . 4 2 . . . . . . . 1 . . 2 4 Hunter 19 | . . . . . . . . 4 1 . . . . 1 . 4 . 9 Programmer 31 | . . . . . . 1 . . . . . . . . . . 6 24 Heavy 3 | . . . . . . . . 1 . . . . . . . 1 . 1 Samaritan 6 | . . . . . . . . . . . 3 2 . 1 . . . . Assembled 1 | . . 1 . . . . . . . . . . . . . . . . Mutant 2 | . . . . . . . . . . . 1 . . . . . . 1 Best Kill Streak 11 | 1 4 5 . 5 7 4 . 4 4 . 1 1 . 4 1 4 11 10 Combat Bots Only 7 | . 3 5 . 4 7 3 . 4 4 . 1 1 . 4 . 4 6 6 Max Kills in Single Turn 5 | 1 3 2 . 3 3 4 . 1 2 . 1 1 . 1 1 1 4 5 Gunslinging . | . . . . . . . . . . . . . . . . . . . Exploded 5 | . 3 2 . 2 3 3 . 1 2 . . . . . . . 3 5 Melee . | . . . . . . . . . . . . . . . . . . . Uniques/NPCs Destroyed . | . . . . . . . . . . . . . . . . . . . Combat | -11 -10 -10 -10 -9 -8 -7 -6 -6 -5 -4 -4 -4 -4 -3 -3 -3 -2 -1 -------- Run | Yrd Mat Min Exi Min Mat Fac Fac DSF Fac Fac Upp Upp Zhi Pro Res DSF Res Acc Hostile Shots Fired 1515 | . 48 57 . 17 85 40 . 75 27 . 33 4 . 100 . 90 67 872 Missed 361 | . 10 15 . 4 10 16 . 16 7 . 14 2 . 19 . 19 21 208 Hits 1154 | . 38 42 . 13 75 24 . 59 20 . 19 2 . 81 . 71 46 664 Melee 57 | . . 4 . . 4 . . . . . . . . 21 . . . 28 Projectile 1097 | . 38 38 . 13 71 24 . 59 20 . 19 2 . 60 . 71 46 636 AOE 1 | . 1 . . . . . . . . . . . . . . . . . Critical Strikes 53 | . 2 1 . . 3 1 . 3 1 . 1 . . 8 . 1 2 30 Actively Blocked 18 | . . . . . . . . . . . . . . . . . . 18 Part Disruptions 4 | . . . . . . . . . . . 1 . . . . . 1 2 Damage Taken 24200 | . 587 516 . 187 1567 240 . 1103 269 . 206 52 . 2193 . 1354 1148 14778 Core 1872 | . 88 49 . 85 194 26 . 247 34 . 23 . . 84 . 422 48 572 Absorbed by Shields 544 | . . . . . 56 . . . . . . . . . . . . 488 Reduced by Siege Mode 2534 | . . . . . . . . . . . . . . . . 99 44 2391 Redirected to Shielding 85 | . . . . . . . . . . . . . . 38 . 26 21 . Ignored by Resistances 202 | . . . . . 31 26 . . . . . . . . . 145 . . Regen/Repaired (Parts) 124 | . 124 . . . . . . . . . . . . . . . . . Core Remaining (%) 74 | 100 . . . 11 64 96 . 70 96 . . . . 90 . 67 96 59 Volleys Fired 611 | 22 52 45 . 11 37 30 . 42 35 2 14 11 7 46 1 18 39 199 Largest 4 | 2 2 2 . 2 2 2 . 2 2 1 3 3 3 3 3 3 3 4 Hottest 480 | 70 90 70 . 90 150 155 . 155 155 30 185 185 218 293 293 293 250 480 Shots Fired 1366 | 43 101 90 . 19 60 38 . 64 38 2 32 25 21 102 3 42 85 601 Gun 511 | 43 98 87 . 8 . . . . 3 . 9 7 14 75 2 33 61 71 Cannon 808 | . . . . 8 49 37 . 58 33 2 21 17 7 26 1 9 21 519 Launcher 42 | . 3 3 . 3 11 1 . 6 2 . . . . . . . 2 11 Special 5 | . . . . . . . . . . . 2 1 . 1 . . 1 . Kinetic 118 | 22 34 54 . 8 . . . . . . . . . . . . . . Thermal 1177 | 21 40 33 . 8 49 37 . 58 36 2 30 24 21 101 3 42 82 590 Explosive 42 | . 3 3 . 3 11 1 . 6 2 . . . . . . . 2 11 Electromagnetic 24 | . 24 . . . . . . . . . . . . . . . . . Robot Hit Streak 36 | 9 9 18 . 19 17 7 . 12 10 . 29 27 20 23 2 32 35 36 Robot Miss Streak 5 | 3 5 3 . 2 3 1 . 2 1 . 1 1 . 2 1 . 3 4 Penetration Max . | . . . . . . . . . . . . . . . . . . . Secondary Targets 4 | . . . . . . . . . . . . . . 1 . 3 . . Max Gunslinging Chain 1 | . . . . . . . . . . . . . . 1 . 1 . . Capacitor 23 | . . . . . . . . . . 1 3 3 . 13 . . 3 . Shots Hit Robots 807 | 26 58 62 . 9 38 14 . 43 6 . 24 16 16 61 2 30 49 353 Core Hits 452 | 5 25 29 . 14 40 14 . 31 9 . 13 11 10 25 2 15 32 177 Critical Kills 10 | . . . . . . . . . . . . . . . . 1 . 9 Critical Parts Destroyed . | . . . . . . . . . . . . . . . . . . . Critical Strikes 13 | . 1 2 . . . . . . . . . . . . . 1 . 9 Burn 3 | . 1 2 . . . . . . . . . . . . . . . . Meltdown 10 | . . . . . . . . . . . . . . . . 1 . 9 Melee Attacks . | . . . . . . . . . . . . . . . . . . . Impact . | . . . . . . . . . . . . . . . . . . . Slashing . | . . . . . . . . . . . . . . . . . . . Piercing . | . . . . . . . . . . . . . . . . . . . Sneak Attacks . | . . . . . . . . . . . . . . . . . . . Combat Hostiles . | . . . . . . . . . . . . . . . . . . . Follow-up Attacks . | . . . . . . . . . . . . . . . . . . . Damage Inflicted 34615 | 268 913 750 . 421 1908 1129 . 1701 387 . 651 387 337 1824 73 1158 2711 19997 Guns 8297 | 268 613 635 . 52 . . . . 54 . 284 157 283 1434 32 998 1611 1876 Cannons 19068 | . . . . 144 875 412 . 1322 131 . 367 230 54 390 41 160 230 14712 Explosions 7177 | . 300 115 . 225 1033 717 . 379 202 . . . . . . . 832 3374 Melee . | . . . . . . . . . . . . . . . . . . . Ramming 73 | . . . . . . . . . . . . . . . . . 38 35 Kinetic 748 | 106 189 309 . 144 . . . . . . . . . . . . . . Thermal 27036 | 162 307 326 . 52 875 948 . 1322 185 . 651 387 337 1824 73 1158 1841 16588 Explosive 6570 | . 229 115 . 225 1033 181 . 379 202 . . . . . . . 832 3374 Electromagnetic 188 | . 188 . . . . . . . . . . . . . . . . . Impact . | . . . . . . . . . . . . . . . . . . . Slashing . | . . . . . . . . . . . . . . . . . . . Piercing . | . . . . . . . . . . . . . . . . . . . Highest Corruption 34 | . . . . . 1 2 . . . . . . . . . . 8 34 Average Corruption 14 | . . . . . 1 1 . . . . . . . . . . 4 19 Corruption Purged . | . . . . . . . . . . . . . . . . . . . Corruption Blocked . | . . . . . . . . . . . . . . . . . . . Effects 187 | . . . . . . 2 . . . . . . . . . . 27 158 Message Errors 39 | . . . . . . . . . . . . . . . . . 10 29 Matter Fused 40 | . . . . . . . . . . . . . . . . . 7 33 Heat Flow Errors 18 | . . . . . . 1 . . . . . . . . . . 4 13 Energy Discharges 23 | . . . . . . . . . . . . . . . . . 1 22 Parts Rejected 2 | . . . . . . . . . . . . . . . . . 1 1 Parts Fused 1 | . . . . . . . . . . . . . . . . . 1 . Data Loss (minor) 16 | . . . . . . . . . . . . . . . . . 1 15 Data Loss (major) 7 | . . . . . . 1 . . . . . . . . . . . 6 Misfires 10 | . . . . . . . . . . . . . . . . . 1 9 Alerts 1 | . . . . . . . . . . . . . . . . . . 1 Weapon Failures 30 | . . . . . . . . . . . . . . . . . 1 29 Overload Shots 16 | . . . . . . 1 . 8 7 . . . . . . . . . Effects 1 | . . . . . . 1 . . . . . . . . . . . . Short Circuit 1 | . . . . . . 1 . . . . . . . . . . . . Overflow Damage 916 | . . . . . 27 30 . 4 . . 86 28 . 27 . . 60 654 Projectiles 751 | . . . . . . 30 . 4 . . 86 28 . 27 . . . 576 Explosions 165 | . . . . . 27 . . . . . . . . . . . 60 78 Melee . | . . . . . . . . . . . . . . . . . . . Knockbacks 1 | . . . . . . . . . . . . . . . . . 1 . Impact 1 | . . . . . . . . . . . . . . . . . 1 . Kinetic . | . . . . . . . . . . . . . . . . . . . Secondary . | . . . . . . . . . . . . . . . . . . . Self-Inflicted Damage 615 | . 68 . . 39 220 . . 53 12 . . . . . . . . 223 Shots 14 | . 2 . . 1 5 . . 2 1 . . . . . . . . 3 Rammed 5 | . . . . . . . . . . . . . . . . . 3 2 Targets Rammed 5 | . . . . . . . . . . . . . . . . . 3 2 Kicked . | . . . . . . . . . . . . . . . . . . . Crushed . | . . . . . . . . . . . . . . . . . . . Highest Temperature 1826 | 160 252 200 . 258 402 236 . 486 36 14 135 270 159 360 141 1826 399 612 Average Temperature 112 | 65 65 66 . 135 108 49 . 92 16 14 53 110 75 152 73 355 79 133 Received Heat Transfer 2825 | . 96 237 . 78 551 42 . 126 . . 9 . . 219 . 135 45 1287 Effects 48 | . . . . 1 2 . . 1 . . . . . 4 . 26 1 13 Shutdowns 12 | . . . . . . . . 1 . . . . . . . 7 . 4 Energy Bleed 4 | . . . . 1 . . . . . . . . . . . 1 . 2 Interference 6 | . . . . . . . . . . . . . . 3 . 3 . . Matter Decay 8 | . . . . . 2 . . . . . . . . . . 4 . 2 Short Circuit 4 | . . . . . . . . . . . . . . 1 . 3 . . Damage (minor) 5 | . . . . . . . . . . . . . . . . 4 1 . Damage (major) 7 | . . . . . . . . . . . . . . . . 2 . 5 Damage (core) 2 | . . . . . . . . . . . . . . . . 2 . . Siege Activations 35 | . . . . . . . . . . . . . . . . 5 7 23 Total Turns 696 | . . . . . . . . . . . . . . . . 66 62 568 Longest Duration 83 | . . . . . . . . . . . . . . . . 27 26 83 Martial Activations . | . . . . . . . . . . . . . . . . . . . Shielding Activations . | . . . . . . . . . . . . . . . . . . . Robots Disrupted . | . . . . . . . . . . . . . . . . . . . Combat Hostiles . | . . . . . . . . . . . . . . . . . . . Robots Corrupted . | . . . . . . . . . . . . . . . . . . . Combat Hostiles . | . . . . . . . . . . . . . . . . . . . Parts Fried . | . . . . . . . . . . . . . . . . . . . Impact Corruptions . | . . . . . . . . . . . . . . . . . . . Robots Melted 15 | . . 1 . . . . . . . . . . . 1 . 2 . 11 Combat Hostiles 12 | . . 1 . . . . . . . . . . . 1 . 1 . 9 Parts Melted 88 | 1 . 1 . . 4 2 . 2 2 . 5 1 1 8 . 1 3 57 Heat Transferred 28414 | 481 827 1110 . 148 1295 918 . 1682 286 . 1168 683 452 2331 74 1221 1887 13851 Parts Sabotaged 3 | . . . . . . . . . . . . . . . . . . 3 Parts Stolen . | . . . . . . . . . . . . . . . . . . . Parts Stripped . | . . . . . . . . . . . . . . . . . . . Power Chain Reactions 1 | . 1 . . . . . . . . . . . . . . . . . Alert | -11 -10 -10 -10 -9 -8 -7 -6 -6 -5 -4 -4 -4 -4 -3 -3 -3 -2 -1 ------- Run | Yrd Mat Min Exi Min Mat Fac Fac DSF Fac Fac Upp Upp Zhi Pro Res DSF Res Acc Maximum Alert Level 5 | . . . . . 2 1 . 1 . . . . . . . 1 2 5 Low Security (%) 59 | 100 100 100 . 100 48 78 100 28 100 100 . . . . 100 54 70 . Level 1 12 | . . . . . 18 21 . 71 . . . . . . . 45 21 9 Level 2 4 | . . . . . 32 . . . . . . . . . . . 8 4 Level 3 7 | . . . . . . . . . . . . . . . . . . 26 Level 4 5 | . . . . . . . . . . . . . . . . . . 21 Level 5 7 | . . . . . . . . . . . . . . . . . . 26 High Security 3 | . . . . . . . . . . . . . . . . . . 12 Max Security . | . . . . . . . . . . . . . . . . . . . Sterilizations 2 | . . . . . . . . 1 . . . . . . . 1 . . Peak Influence 3097 | 5 164 159 . 115 522 263 119 283 148 7 . . . . 66 331 522 3097 Initial 300 | . . 3 . . 17 237 119 48 148 7 . . . . 66 27 186 300 Average 483 | . 64 36 . 33 206 134 94 193 58 . . . . . 52 212 155 1488 Influence Increases 8348 | 15 441 380 . 211 855 430 . 245 182 4 203 177 6 421 20 324 812 3622 Destroy 0b10 Robot/C 4420 | . 180 280 . 140 380 120 . 160 100 . 100 100 . 360 . 220 380 1900 Destroy 0b10 Robot/NC 235 | 15 35 . . 5 20 25 . 20 5 . . . 5 . 5 5 30 65 Destroy Leader 816 | . 50 20 . 20 86 42 . 30 22 . 10 20 . 30 2 40 110 334 Allied During Kill 158 | . . . . . . . . . . . 33 57 1 31 . 7 29 . Successful Hack 111 | . 31 . . . 22 24 . . . . . . . . 5 . 5 24 Disable Machine 480 | . 30 15 . 30 60 150 . . 15 . . . . . . 15 . 165 Anti-Garrison Action 300 | . . . . . 150 . . . . . . . . . . . . 150 Destroy Structure 1258 | . 25 20 . 16 77 24 . 20 40 4 . . . . 8 22 258 744 Partial Spotted 15 | . . . . . . . . . . . . . . . . . . 15 Lose Combat Pursuer 555 | . 90 45 . . 60 45 . 15 . . 60 . . . . 15 . 225 Influence Decreases 5341 | 15 432 270 119 165 379 707 176 31 448 21 132 219 35 322 83 29 642 1116 Entered New Map 1163 | . . 6 119 . 29 285 126 21 135 10 . 15 29 . 33 9 145 201 Time Decay 3696 | 15 412 264 . 163 280 422 50 . 303 11 132 164 6 232 50 . 477 715 Lost Part 350 | . 20 . . . 60 . . 10 10 . . . . 50 . . . 200 Lost Ally 132 | . . . . 2 10 . . . . . . 40 . 40 . 20 20 . Squads Dispatched 62 | . 2 . . . 4 1 . 1 . 2 . . . 1 . 2 6 43 Investigation 3 | . 1 . . . . . . . . 1 . . . . . . . 1 Extermination 15 | . . . . . . 1 . . . 1 . . . . . . 5 8 Reinforcement 10 | . 1 . . . 1 . . 1 . . . . . . . 2 1 4 Assault 28 | . . . . . 2 . . . . . . . . 1 . . . 25 Garrison 6 | . . . . . 1 . . . . . . . . . . . . 5 Intercept . | . . . . . . . . . . . . . . . . . . . Searches Triggered . | . . . . . . . . . . . . . . . . . . . Construction Impeded . | . . . . . . . . . . . . . . . . . . . Haulers Reinforced 1 | . . . . . . . . . . . . . . . . . . 1 Active Scanning Responses . | . . . . . . . . . . . . . . . . . . . Cargo Convoy Interrupts . | . . . . . . . . . . . . . . . . . . . Stealth | -11 -10 -10 -10 -9 -8 -7 -6 -6 -5 -4 -4 -4 -4 -3 -3 -3 -2 -1 --------- Run | Yrd Mat Min Exi Min Mat Fac Fac DSF Fac Fac Upp Upp Zhi Pro Res DSF Res Acc Distress Signals 10 | . 3 1 . 1 . 1 . . . . . . . . . . . 4 Communications Jammed 19 | . . . . . . . . . . . . . . . . 1 1 17 Distress Signals 18 | . . . . . . . . . . . . . . . . . 1 17 Times Spotted 330 | . 17 19 . 7 28 16 . 9 7 . 7 3 . 19 . 15 17 166 Peak Tracking Total 23 | . 4 3 . 4 8 4 . 3 4 . 4 2 . 5 . 5 4 23 Tactical Retreats 23 | . 4 3 . . 2 2 . 1 . . 2 . . . . 1 . 8 Traps | -11 -10 -10 -10 -9 -8 -7 -6 -6 -5 -4 -4 -4 -4 -3 -3 -3 -2 -1 ------- Run | Yrd Mat Min Exi Min Mat Fac Fac DSF Fac Fac Upp Upp Zhi Pro Res DSF Res Acc Traps Triggered 15 | . 2 . . . . 4 . 3 . . . . . . . . 4 2 Indirectly . | . . . . . . . . . . . . . . . . . . . Trap Hack Attempts . | . . . . . . . . . . . . . . . . . . . Triggered . | . . . . . . . . . . . . . . . . . . . Disarmed . | . . . . . . . . . . . . . . . . . . . Reprogrammed . | . . . . . . . . . . . . . . . . . . . Reused . | . . . . . . . . . . . . . . . . . . . Traps Extracted . | . . . . . . . . . . . . . . . . . . . Installed . | . . . . . . . . . . . . . . . . . . . Triggered . | . . . . . . . . . . . . . . . . . . . Machines | -11 -10 -10 -10 -9 -8 -7 -6 -6 -5 -4 -4 -4 -4 -3 -3 -3 -2 -1 ---------- Run | Yrd Mat Min Exi Min Mat Fac Fac DSF Fac Fac Upp Upp Zhi Pro Res DSF Res Acc Machines Disabled 36 | . 2 1 . 2 5 10 . . 1 . 1 . . 1 . 1 . 12 Max in Single Turn 9 | . 1 1 . 1 1 9 . . 1 . 1 . . . . . . 1 Garrison Access 4 | . . . . . 1 . . . 1 . . . . . . . . 2 Energy Cycler 1 | . . . . . . . . . . . . . . . . . . 1 Machines Repaired . | . . . . . . . . . . . . . . . . . . . Machines Dismantled . | . . . . . . . . . . . . . . . . . . . Machines Sabotaged . | . . . . . . . . . . . . . . . . . . . Overloaded Fab Kills . | . . . . . . . . . . . . . . . . . . . Hacking | -11 -10 -10 -10 -9 -8 -7 -6 -6 -5 -4 -4 -4 -4 -3 -3 -3 -2 -1 --------- Run | Yrd Mat Min Exi Min Mat Fac Fac DSF Fac Fac Upp Upp Zhi Pro Res DSF Res Acc Machines Accessed 40 | . 6 . 2 . 4 6 2 . 4 3 . 1 4 . 1 . 3 4 Terminals 21 | . 5 . . . 3 3 2 . 1 2 . . . . 1 . 3 1 Fabricators 1 | . . . . . . . . . 1 . . . . . . . . . Repair Stations 3 | . 1 . . . . 2 . . . . . . . . . . . . Recycling Units . | . . . . . . . . . . . . . . . . . . . Scanalyzers 4 | . . . . . 1 1 . . 1 . . . . . . . . 1 Garrison Access 4 | . . . . . . . . . 1 1 . . . . . . . 2 Total Hacks 118 | . 20 . 24 . 18 9 2 . 7 6 . 1 17 . 1 . 7 6 Successful 72 | . 11 . 24 . 8 2 1 . 1 1 . 1 17 . 1 . 3 2 Failed 46 | . 9 . . . 10 7 1 . 6 5 . . . . . . 4 4 Catastrophic 6 | . . . . . . 1 . . . 3 . . . . . . . 2 Database Lockouts . | . . . . . . . . . . . . . . . . . . . Manual 37 | . 17 . 1 . 13 3 . . . 2 . . . . . . . 1 Terminals 53 | . 18 . . . 13 5 2 . 3 3 . . . . 1 . 7 1 Fabricators 1 | . . . . . . . . . 1 . . . . . . . . . Repair Stations 5 | . 2 . . . . 3 . . . . . . . . . . . . Recycling Units . | . . . . . . . . . . . . . . . . . . . Scanalyzers 9 | . . . . . 5 1 . . 1 . . . . . . . . 2 Garrison Access 8 | . . . . . . . . . 2 3 . . . . . . . 3 Terminal Hacks 48 | . . . 24 . . 1 1 . . . . 1 17 . 1 . 3 . Record 28 | . . . 23 . . . . . . . . . 5 . . . . . Part Schematic 4 | . . . . . . . . . . . . . 4 . . . . . Robot Analysis 4 | . . . . . . . . . . . . . 4 . . . . . Prototype ID Bank 4 | . . . . . . . . . . . . . 4 . . . . . Open Door 1 | . . . . . . . . . . . . 1 . . . . . . Open DSF 4 | . . . . . . 1 1 . . . . . . . 1 . 1 . Maintenance Status 1 | . . . . . . . . . . . . . . . . . 1 . Recall Extermination 1 | . . . . . . . . . . . . . . . . . 1 . Proto ID Catalog 1 | . . . 1 . . . . . . . . . . . . . . . Fabricator Hacks . | . . . . . . . . . . . . . . . . . . . Repair Station Hacks 3 | . 2 . . . . 1 . . . . . . . . . . . . Scan Component 2 | . 1 . . . . 1 . . . . . . . . . . . . Repair 1 | . 1 . . . . . . . . . . . . . . . . . Recycling Unit Hacks . | . . . . . . . . . . . . . . . . . . . Scanalyzer 5 | . . . . . 4 . . . . . . . . . . . . 1 Retrieve Study 5 | . . . . . 4 . . . . . . . . . . . . 1 Garrison Access Hacks 2 | . . . . . . . . . 1 . . . . . . . . 1 Seal Access 2 | . . . . . . . . . 1 . . . . . . . . 1 Unauthorized Hacks 14 | . 9 . . . 4 . . . . 1 . . . . . . . . Terminals 14 | . 9 . . . 4 . . . . 1 . . . . . . . . Assimilate 1 | . . . . . 1 . . . . . . . . . . . . . Botnet 5 | . 4 . . . . . . . . 1 . . . . . . . . Operators 1 | . . . . . 1 . . . . . . . . . . . . . Skim 7 | . 5 . . . 2 . . . . . . . . . . . . . Fabricators . | . . . . . . . . . . . . . . . . . . . Repair Stations . | . . . . . . . . . . . . . . . . . . . Recycling Units . | . . . . . . . . . . . . . . . . . . . Scanalyzers . | . . . . . . . . . . . . . . . . . . . Garrison Access . | . . . . . . . . . . . . . . . . . . . Data Cores Recovered . | . . . . . . . . . . . . . . . . . . . Used . | . . . . . . . . . . . . . . . . . . . Hacking Detections 27 | . 6 . . . 4 6 1 . 3 3 . . . . . . 1 3 Full Trace Events 2 | . . . . . . . . . . 1 . . . . . . . 1 Feedback Events . | . . . . . . . . . . . . . . . . . . . Feedback Blocked . | . . . . . . . . . . . . . . . . . . . Robot Schematics Acquired . | . . . . . . . . . . . . . . . . . . . Robots Built . | . . . . . . . . . . . . . . . . . . . Authchips . | . . . . . . . . . . . . . . . . . . . Time . | . . . . . . . . . . . . . . . . . . . Total Robot Build Rating . | . . . . . . . . . . . . . . . . . . . Part Schematics Acquired 4 | . . . . . . . . . . . . . 4 . . . . . Parts Built . | . . . . . . . . . . . . . . . . . . . Authchips . | . . . . . . . . . . . . . . . . . . . Time . | . . . . . . . . . . . . . . . . . . . Total Part Build Rating . | . . . . . . . . . . . . . . . . . . . Part Studies Acquired 4 | . . . . . 3 . . . . . . . . . . . . 1 Parts Repaired 1 | . 1 . . . . . . . . . . . . . . . . . Time 26 | . 26 . . . . . . . . . . . . . . . . . Parts Recycled . | . . . . . . . . . . . . . . . . . . . Recycled Matter . | . . . . . . . . . . . . . . . . . . . Retrieved Matter . | . . . . . . . . . . . . . . . . . . . Retrieved Components . | . . . . . . . . . . . . . . . . . . . Parts Scanalyzed . | . . . . . . . . . . . . . . . . . . . Part Schematics Acquired . | . . . . . . . . . . . . . . . . . . . Parts Damaged . | . . . . . . . . . . . . . . . . . . . Bothacking | -11 -10 -10 -10 -9 -8 -7 -6 -6 -5 -4 -4 -4 -4 -3 -3 -3 -2 -1 ------------ Run | Yrd Mat Min Exi Min Mat Fac Fac DSF Fac Fac Upp Upp Zhi Pro Res DSF Res Acc Used RIF Installer . | . . . . . . . . . . . . . . . . . . . Robots Hacked . | . . . . . . . . . . . . . . . . . . . Non-combat . | . . . . . . . . . . . . . . . . . . . Combat . | . . . . . . . . . . . . . . . . . . . Robot Hacks Applied . | . . . . . . . . . . . . . . . . . . . Relay Couplers Released 7 | . . . . . 1 . . . . . . . . . . . 3 3 Machine Destruction 4 | . . . . . 1 . . . . . . . . . . . . 3 Programmers 3 | . . . . . . . . . . . . . . . . . 3 . Fabnet Peak Effective % . | . . . . . . . . . . . . . . . . . . . Robots Rewired 4 | . . . . . . . . . . . 3 . . 1 . . . . Allies Hacked 1 | . . . . . . . . . . . . . . . . . 1 . Hacks Repelled . | . . . . . . . . . . . . . . . . . . . Allies | -11 -10 -10 -10 -9 -8 -7 -6 -6 -5 -4 -4 -4 -4 -3 -3 -3 -2 -1 -------- Run | Yrd Mat Min Exi Min Mat Fac Fac DSF Fac Fac Upp Upp Zhi Pro Res DSF Res Acc Total Allies 10 | . . . . 1 1 . . . . . 4 1 . 2 . . 1 . Largest Group 5 | . . . . 1 1 . . . . . 4 5 3 3 1 1 1 . Highest-Rated Group 373 | . . . . 31 26 . . . . . 257 373 210 210 116 116 148 . Highest-Rated Ally 148 | . . . . 31 26 . . . . . 116 116 116 116 116 116 148 . Initial Warlord ECA Mod 16 | . . . . . . . . . 9 8 8 8 8 7 7 7 16 15 Warlord Squad Rendezvous 2 | . . . . . . . . . . . . . . . . . . 2 Pyro 1 | . . . . . . . . . . . . . . . . . . 1 Chimera 1 | . . . . . . . . . . . . . . . . . . 1 Total Orders . | . . . . . . . . . . . . . . . . . . . Ally Attacks 136 | . . . . 1 . . . . . . 13 27 . 35 . 9 51 . Total Damage 4705 | . . . . . . . . . . . 660 883 . 1557 . 449 1156 . Kills 26 | . . . . . . . . . . . 5 4 . 8 . 2 7 . Allies Corrupted . | . . . . . . . . . . . . . . . . . . . Allies Melted . | . . . . . . . . . . . . . . . . . . . Field Lobotomies 4 | . . . . . . . . . . . 1 1 . 1 . . 1 . Intel | -11 -10 -10 -10 -9 -8 -7 -6 -6 -5 -4 -4 -4 -4 -3 -3 -3 -2 -1 ------- Run | Yrd Mat Min Exi Min Mat Fac Fac DSF Fac Fac Upp Upp Zhi Pro Res DSF Res Acc Active Infowar (turns) 14155 | 55 1611 770 378 568 421 1016 116 607 690 350 1233 605 335 898 104 507 1723 2168 Optics 7972 | . . . . . . . 113 607 690 350 1233 605 335 898 104 507 1723 807 Sensors 1948 | . . 2 . . 1 . . . . . 1042 538 . 365 . . . . Structural 4505 | . . . . . 414 1016 116 48 690 324 . . . . 104 40 933 820 Seismic 3800 | 55 1611 768 378 568 419 1 . . . . . . . . . . . . Jamming 4438 | . . . . . . . . . 419 333 . . . . 103 371 1695 1517 Robot Analysis Total 4 | . . . . . . . . . . . . . 4 . . . . . Derelict Logs Recovered 3 | . . 1 . . . . . . . . 2 . . . . . . . Drone Launches . | . . . . . . . . . . . . . . . . . . . Drone Recoveries . | . . . . . . . . . . . . . . . . . . . Exploration | -11 -10 -10 -10 -9 -8 -7 -6 -6 -5 -4 -4 -4 -4 -3 -3 -3 -2 -1 ------------- Run | Yrd Mat Min Exi Min Mat Fac Fac DSF Fac Fac Upp Upp Zhi Pro Res DSF Res Acc Turns Passed 17167 | 150 1611 1583 378 568 918 1028 116 607 690 350 1233 605 335 929 104 507 1723 3732 Spaces Moved 9071 | 85 864 602 291 364 486 684 95 248 504 284 969 394 188 481 48 169 828 1487 Core 52 | 2 . . . . . . . . . . . . . . . . . 50 Treads 2767 | . . 11 . . . . . 11 . . . . . 263 48 169 828 1437 Legs . | . . . . . . . . . . . . . . . . . . . Wheels 6252 | 83 864 591 291 364 486 684 95 237 504 284 969 394 188 218 . . . . Hover . | . . . . . . . . . . . . . . . . . . . Flight . | . . . . . . . . . . . . . . . . . . . Fastest Speed 50 | 50 80 130 130 130 105 115 115 115 110 110 110 110 123 130 161 160 160 50 Average Speed 131 | 79 112 133 130 130 114 123 115 130 111 110 110 116 127 147 161 164 160 158 Slowest Speed 320 | 80 135 320 130 130 145 160 115 240 130 110 110 123 130 242 164 250 160 170 Overloaded Moves . | . . . . . . . . . . . . . . . . . . . Propulsion Burnouts . | . . . . . . . . . . . . . . . . . . . Robots Hopped . | . . . . . . . . . . . . . . . . . . . Potential Cave-ins 5 | . . . . . 3 . . . . . . . . . . . . 2 Cave-ins Triggered 1 | . . . . . 1 . . . . . . . . . . . . . Teleports 1 | . . . . . . . . . . . . . . . . . . 1 Exploration Rate (%) 48 | 6 99 93 70 72 44 19 3 82 12 7 86 58 61 61 3 86 17 45 Regions Visited 18 Branch Regions 7 Pre-discovered Areas 8 | . 2 . 1 . . . . . . . 2 . 3 . . . . . Known Exits Taken 12 | . 1 . . . 1 1 1 . 1 1 1 1 1 1 1 . 1 . Unknown Exits Taken 4 | 1 . 1 1 1 . . . . . . . . . . . . . . Scrap Searched 7 | . . 1 . 2 . . . . . . 3 1 . . . . . . Spaces Dug 182 | . . . . 5 37 4 . 14 12 2 1 1 . 5 . 3 45 53 Terrain Destroyed 617 | . 28 22 . 17 94 25 . 30 19 2 1 1 . 23 . 7 53 295 Melee . | . . . . . . . . . . . . . . . . . . . Projectile 228 | . . . . 3 11 4 . 1 12 2 1 1 . 23 . 7 20 143 AOE 389 | . 28 22 . 14 83 21 . 29 7 . . . . . . . 33 152 Terrain Rammed . | . . . . . . . . . . . . . . . . . . . Walls Destroyed . | . . . . . . . . . . . . . . . . . . . Machines Disabled . | . . . . . . . . . . . . . . . . . . . Actions | -11 -10 -10 -10 -9 -8 -7 -6 -6 -5 -4 -4 -4 -4 -3 -3 -3 -2 -1 --------- Run | Yrd Mat Min Exi Min Mat Fac Fac DSF Fac Fac Upp Upp Zhi Pro Res DSF Res Acc Total 13260 | 125 1399 1293 291 439 803 837 102 479 597 321 1107 521 269 626 73 373 1157 2448 Wait 2741 | 4 426 609 . 48 170 32 . 126 32 21 94 102 64 59 15 126 226 587 Move 9051 | 84 863 601 290 363 484 683 94 247 503 283 968 393 187 480 47 168 827 1486 Hop . | . . . . . . . . . . . . . . . . . . . Pick Up 179 | 8 16 9 1 7 27 22 4 4 5 4 1 5 3 5 3 15 12 28 Fast Attach 72 | 7 . . . . 8 5 . 2 4 1 1 . 2 6 1 8 10 17 Attach 92 | . 2 . . . 20 5 3 1 3 2 . 1 . 14 2 2 6 31 Detach 29 | . . . . . 7 1 . 2 3 1 1 . . 3 . 1 3 7 Swap 191 | . 31 24 . 6 14 6 . 21 5 3 6 5 1 7 1 7 14 40 Drop 209 | . 9 5 . 4 35 21 1 10 7 4 1 4 5 4 3 28 17 51 Fire 611 | 22 52 45 . 11 37 30 . 42 35 2 14 11 7 46 1 18 39 199 Melee . | . . . . . . . . . . . . . . . . . . . Ram . | . . . . . . . . . . . . . . . . . . . Kick . | . . . . . . . . . . . . . . . . . . . Crush 5 | . . . . . . . . . . . . . . . . . 3 2 Escape Stasis 57 | . . . . . 1 32 . 24 . . . . . . . . . . Rewire 23 | . . . . . . . . . . . 21 . . 2 . . . . Trap . | . . . . . . . . . . . . . . . . . . . Miscellaneous . | . . . . . . . . . . . . . . . . . . . Route ------- -11/Scrapyard -10/Materials (discovered 5 exits: *Mat x3 / *Min / [*Sub]) -10/Mines (discovered 4 exits: *Mat x2 / *Exi / [*Sub]) -10/Exiles (discovered 2 exits: [*Min x2]) -9/Mines -8/Materials (discovered 2 exits: *Fac x2) -7/Factory -6/Factory -6/DSF -5/Factory -4/Factory -4/Upper Caves -4/Upper Caves (discovered 2 exits: *Res / *Zhi) -4/Zhirov -3/Proximity Caves -3/Research -3/DSF -2/Research -1/Access To Epsilon Eridani History --------- Turn | Location | Event 29 | -11/Scrapyard | Discovered new exit (range 15) 151 | -11/Scrapyard | Entered Materials 301 | -10/Materials | Build established: Mutant 336 | -10/Materials | Discovered new exit (range 5) 464 | -10/Materials | Repaired Lgt. Treads 631 | -10/Materials | Learned Storage stockpile data 665 | -10/Materials | Learned 4 Subcaves zone layouts 688 | -10/Materials | Learned location of 1 exit from Recycling 706 | -10/Materials | Learned location of Mines (-9) 717 | -10/Materials | Learned location of 2 exits from Subcaves 739 | -10/Materials | Identified exit to Mines 739 | -10/Materials | Identified exit to Materials 931 | -10/Materials | Discovered new exit (range 11) 1762 | -10/Materials | Entered Mines 1952 | -10/Mines | Found a damaged Exp. Sensor Array with a note attached 1954 | -10/Mines | Found Prototype Device 1955 | -10/Mines | Identified Exp. Sensor Array 1987 | -10/Mines | Learned location of 2 exits from Materials 1997 | -10/Mines | Discovered exit to Materials (range 12) 2207 | -10/Mines | Discovered new exit (range 10) 2247 | -10/Mines | Discovered exit to Materials (range 3) 2256 | -10/Mines | Received a Rocket Launcher from a helpful Derelict 2269 | -10/Mines | Deemed a non-threat by the Exiles lab entrance 2269 | -10/Mines | Discovered new exit (range 5) 2347 | -10/Mines | Found a hidden stash of uninstalled traps 2466 | -10/Mines | Excavation squad dispatched 2466 | -10/Mines | A large section of the Mines collapsed 2716 | -10/Mines | Excavation squad dispatched 2966 | -10/Mines | Excavation squad dispatched 3117 | -10/Mines | Core integrity fell below 50% 3345 | -10/Mines | Entered Exiles 3365 | -10/Exiles | Discovered new exit (range 15) 3386 | -10/Exiles | Met 8R-AWN 3407 | -10/Exiles | Met EX-HEX 3451 | -10/Exiles | Met EX-BIN 3465 | -10/Exiles | Aligned with FarCom system 3466 | -10/Exiles | Given EX-Vault access code 3496 | -10/Exiles | Opened EX-Vault 3505 | -10/Exiles | Found Field Lobotomy Kit 3530 | -10/Exiles | Warned to stay clear of 0b10 Research branches 3550 | -10/Exiles | Exiles lab attacked by MAIN.C 3578 | -10/Exiles | Learned location of Zion (-6) 3708 | -10/Exiles | Discovered new exit (range 12) 3723 | -10/Exiles | Left Exiles lab with Field Lobotomy Kit 3723 | -10/Exiles | Entered Mines 3894 | -9/Mines | Assembled infested the area 4022 | -9/Mines | Received a Mining Laser from a helpful Derelict 4134 | -9/Mines | A weapon hastily lodged in a ceiling crevice suddenly fell to the ground 4197 | -9/Mines | Core integrity fell below 20% 4262 | -9/Mines | Discovered new exit (range 12) 4291 | -9/Mines | Entered Materials 4291 | -8/Materials | Evolved 4 slots: Propulsion x2, Utility x2 4292 | -8/Materials | Identified exit to Factory 4756 | -8/Materials | Lost 3 parts (3u) 4842 | -8/Materials | Crushed by falling debris 4847 | -8/Materials | Destroyed 7 combat bots 5209 | -8/Materials | Entered Factory 5209 | -7/Factory | Evolved 2 slots: Utility x2 5789 | -7/Factory | Discovered new exit (range 15) 5812 | -7/Factory | Identified exit to Factory 6237 | -7/Factory | Entered another Factory area 6237 | -6/Factory | Evolved 2 slots: Propulsion x2 6353 | -6/Factory | Identified exit to DSF 6353 | -6/Factory | Entered DSF 6398 | -6/DSF | Discovered new exit (range 20) 6427 | -6/DSF | Additional patrols routed to DSF 6811 | -6/DSF | Sterilization system engaged 6831 | -6/DSF | Ambient heat levels rising (+10) 6846 | -6/DSF | Ambient heat levels rising (+10) 6861 | -6/DSF | Ambient heat levels rising (+10) 6876 | -6/DSF | Ambient heat levels rising (+10) 6891 | -6/DSF | Ambient heat levels rising (+10) 6906 | -6/DSF | Ambient heat levels rising (+10) 6921 | -6/DSF | Ambient heat levels rising (+10) 6936 | -6/DSF | Ambient heat levels rising (+10) 6951 | -6/DSF | Ambient heat levels rising (+10) 6957 | -6/DSF | Identified exit to Factory 6960 | -6/DSF | Entered Factory 6960 | -5/Factory | Evolved 2 slots: Power x1, Utility x1 7055 | -5/Factory | Discovered new exit (range 5) 7059 | -5/Factory | Identified exit to Factory 7260 | -5/Factory | Build established: Infiltrator-Skirmisher 7650 | -5/Factory | Entered another Factory area 7650 | -4/Factory | Evolved 2 slots: Utility x1, Weapon x1 7800 | -4/Factory | Found Quantum Capacitor 7960 | -4/Factory | Discovered new exit (range 13) 7975 | -4/Factory | Identified exit to Upper Caves 8000 | -4/Factory | Entered Upper Caves 8088 | -4/Upper Caves | Met a Warlord Commander 8090 | -4/Upper Caves | Warlord Commander delivered Encrypted Comm Array 8091 | -4/Upper Caves | Found Encrypted Comm Array 8179 | -4/Upper Caves | Learned location of Quarantine (-3) 8261 | -4/Upper Caves | Spotted B-86 Titan 8271 | -4/Upper Caves | Assimilated B-86 Titan with FLK Orb 8390 | -4/Upper Caves | Build established: Skirmisher 8730 | -4/Upper Caves | Attracted the attention of an 0b10 checkpoint 8828 | -4/Upper Caves | Attacked by a delusional Derelict stockpiling Unaware 9031 | -4/Upper Caves | Learned Research trap positions 9136 | -4/Upper Caves | Discovered new exit (range 14) 9160 | -4/Upper Caves | Identified exit to Upper Caves 9232 | -4/Upper Caves | Build established: Commander-Skirmisher 9233 | -4/Upper Caves | Entered another Upper Caves area 9233 | -4/Upper Caves | Accompanied by 4 allies 9234 | -4/Upper Caves | Encountered a Warlord checkpoint 9240 | -4/Upper Caves | Discovered new exit (range 5) 9252 | -4/Upper Caves | Identified exit to Research 9536 | -4/Upper Caves | Spotted B-86 Titan 9537 | -4/Upper Caves | Assimilated B-86 Titan with FLK Orb 9605 | -4/Upper Caves | Discovered new exit (range 20) 9626 | -4/Upper Caves | Identified exit to Zhirov 9838 | -4/Upper Caves | Entered Zhirov 9838 | -4/Zhirov | Accompanied by 3 allies 9838 | -4/Zhirov | Discovered new exit (range 3) 9840 | -4/Zhirov | Identified exit to Proximity Caves 9861 | -4/Zhirov | Met Zhirov 9883 | -4/Zhirov | Learned location of Testing (-2) 9883 | -4/Zhirov | Learned location of Command (-1) 9895 | -4/Zhirov | Zhirov requested help retrieving the SGEMP Prototype 10015 | -4/Zhirov | Found Alien Artifact 10031 | -4/Zhirov | Found Alien Artifact 10070 | -4/Zhirov | Build established: Gunner 10173 | -4/Zhirov | Entered Proximity Caves 10173 | -3/Proximity Caves | Accompanied by 3 allies 10509 | -3/Proximity Caves | Attracted the attention of an 0b10 outpost 10672 | -3/Proximity Caves | Lost 3 parts (2u1w) 10700 | -3/Proximity Caves | Found Hvy. Reflective Plating 10947 | -3/Proximity Caves | Spotted B-86 Titan 10950 | -3/Proximity Caves | Assimilated B-86 Titan with FLK Orb 11018 | -3/Proximity Caves | Discovered exit to Research (range 13) 11053 | -3/Proximity Caves | Attracted the attention of an 0b10 checkpoint 11063 | -3/Proximity Caves | Build established: Scavenger-Tank 11102 | -3/Proximity Caves | Entered Research 11102 | -3/Research | Accompanied by 1 ally 11102 | -3/Research | Evolved 2 slots: Utility x2 11103 | -3/Research | Loaded intel: 52 trap records 11192 | -3/Research | Identified exit to DSF 11206 | -3/Research | Entered DSF 11206 | -3/DSF | Accompanied by 1 ally 11207 | -3/DSF | Joined Warlord attack on 0b10 via DSF 11220 | -3/DSF | Additional patrols routed to DSF 11252 | -3/DSF | Discovered new exit (range 21) 11318 | -3/DSF | Lost 13 allies 11524 | -3/DSF | Sterilization system engaged 11544 | -3/DSF | Ambient heat levels rising (+10) 11559 | -3/DSF | Ambient heat levels rising (+10) 11574 | -3/DSF | Ambient heat levels rising (+10) 11589 | -3/DSF | Ambient heat levels rising (+10) 11604 | -3/DSF | Ambient heat levels rising (+10) 11619 | -3/DSF | Ambient heat levels rising (+10) 11634 | -3/DSF | Ambient heat levels rising (+10) 11649 | -3/DSF | Ambient heat levels rising (+10) 11664 | -3/DSF | Ambient heat levels rising (+10) 11679 | -3/DSF | Ambient heat levels rising (+10) 11694 | -3/DSF | Ambient heat levels rising (+10) 11709 | -3/DSF | Ambient heat levels rising (+10) 11713 | -3/DSF | Entered Research 11713 | -2/Research | Evolved 2 slots: Propulsion x2 11757 | -2/Research | Found Quantum Capacitor 11920 | -2/Research | Found Prototype Processor 11920 | -2/Research | Identified Exp. Signal Interpreter 12218 | -2/Research | Build established: Infiltrator-Skirmisher 12326 | -2/Research | Spotted B-90 Cyclops 12329 | -2/Research | Assimilated B-90 Cyclops with FLK Orb 13236 | -2/Research | Build established: Tank 13311 | -2/Research | Discovered new exit (range 14) 13435 | -2/Research | Identified exit to Access 13436 | -2/Research | Entered Access 13436 | -1/Access | Evolved 2 slots: Utility x1, Weapon x1 13749 | -1/Access | Garrison activated, responded to threat 13865 | -1/Access | Joined by Warlord Chimera squad 13936 | -1/Access | First assault squad dispatched 14000 | -1/Access | Build established: Scavenger-Tank 14248 | -1/Access | System corruption reached 10% 15164 | -1/Access | Found Imp. Powered Armor 15167 | -1/Access | Found Imp. Powered Armor 15185 | -1/Access | Build established: Scavenger-Gunner 15721 | -1/Access | Build established: Scavenger-Tank 15772 | -1/Access | Joined by Warlord Pyro squad 15940 | -1/Access | Lost 3 allies 15948 | -1/Access | Garrison activated, responded to threat 16111 | -1/Access | System corruption reached 30% 16367 | -1/Access | Energy Cycler disabled 16719 | -1/Access | High security lockdown imminent 16799 | -1/Access | High security lockdown engaged 16933 | -1/Access | Found Prototype Device 16933 | -1/Access | Identified Thermal Barrier 17108 | -1/Access | Identified Transdimensional Reconstructor 17108 | -1/Access | Warped through subspace 17108 | -1/Access | Spotted B-99 Colossus 17109 | -1/Access | Identified Integrated Reactor 17109 | -1/Access | Installed Integrated Reactor, increased core energy generation (+10) 17165 | -1/Access | Discovered new exit (range 6) 17167 | -1/Access | Lost 12 parts (4n4u4w) 17167 | -1/Access | Identified exit to Surface 17168 | *** | Escaped! Last Messages --------------- 17140_ Penetrated by Slug. 17140_ Dropped Adv. Heat Sink. 17141_ K-01 Serf collects debris. 17141_ Dropped Rnf. Quantum Reactor. 17141_ Dropped Quantum Reactor. 17143_ Acquired Imp. Plasma Cutter. 17143_ M-36 Artificer repairs S-43 Plague. 17143_ Knocked back. 17143_ Slug penetrates Wall. 17143_ Penetrated by Slug. 17143_ Slug penetrates Wall. 17143_ Slug penetrates Door. 17147_ Slug penetrates Wall. 17147_ Penetrated by Slug. 17155_ System corrupted: Heat flow error (+124). 17165_ The Access Shell folds into the floor. 17165_ EXIT=FOUND 17167_ EXIT=IDENTIFIED: SURFACE [Achievement: 20k Club] [Achievement: 30k Club] Map ----- +----------------------------------------------------+ | ?????????????????????????????????????????????????? | | ?????????????????????????????????????????????????? | | ?????????????????????????????????????????????????? | | ?????????????????????????????????????????????????? | | ?????????????????????????????????????????????????? | | ?????????????????????????????????????????????????? | | ?????????????????????????????????????????????????? | | ?????????????????????????????????????????????????? | | ?????????????????????????????????????????????????? | | ?????????????????????????????????????????????????? | | ?????????????????????????????????????????????????? | | ?????????????????????????????????????????????????? | | ?????????????????????????????????????????????????? | | ?????????????????????????????????????????????????? | | ?????????????????????BB????BB????????????????????? | | ?????????????????????BB????BB????????????????????? | | ?????????????????????????????????????????????????? | | ?????????????????????????????????????????????????? | | ?????????????????????????????????????????????????? | | ?????????????????????????????????????????????????? | | ???????????????????#""""""""""#??????????????????? | | ???????????????????# #??????????????????? | | ???????????????????# #??????????????????? | | ???????????????????# #??????????????????? | | ??????????? ??????# "" #??????????????????? | | ??????????? ??????# "@ #??????????????????? | | ??????????? ??????# #??????????????????? | | ??????????# ??????# #??????????????????? | | ??????????# #?????# #???????Y??????????? | | ??????????# #????## ##????YC???????????? | | ??????????# #????# #?????????????????? | | ??????????# #????##"" ##?????????????????? | | ??????????# #?????#"" #??????????????????? | | ??????????# w#?????#"" #??????????????????? | | ??????????# #?????#T #??????????????????? | | ??????????# #?????#"" s #??????????????????? | | ??????????# #?????#"" #???Y??????????????? | | ########### #######"" s#????Y?????????????? | | ssw ???????????? | | s ???????????? | | ????#######+#########################????????????? | | ???????# #????????????????????????????????? | | ???????# [ #????????????????????????????????? | | ???????# #????????????????????????????????? | | ???????# #######??????????????????????????? | | ???????# / +??????????????????????????? | | ???????# ## ####??????????????????????????? | | ???????# ## #?????????????????????????????? | | ???????# * ## #?????????????????????????????? | | ???????# ## #?????????????????????????????? | +----------------------------------------------------+ Best States ------------- Heat Dissipation 242 Energy Generation 55 Energy Capacity 600 Matter Stores 300 Matter Capacity 300 Sight Range 22 Robot Scan Range 20 Terrain Scan Density 10 Jamming Range 12 Additional Mass Support 25 Base Temperature (-) 200 Corruption Block 15 Armor Coverage 1650 Resistance: KI 20 Resistance: TH 25 Utility Shielding 90 Weapon Cycling 15 Evasion (%) 50 Targeting Accuracy 16 Core Analysis 6 Recoil Reduction 8 Energy Filtering 50 Particle Charging 25 Offensive Hacking 12 Item Schematics ----------------- Assault Drone Bay | -4/Zhirov | Free Exp. Heat Sink | -4/Zhirov | Free Exp. Optical Array | -4/Zhirov | Free Imp. Arc Thrower | -4/Zhirov | Free Robot Schematics ------------------ None Fabricated ------------ Nothing Repaired ---------- Lgt. Treads | 11% | -10/Materials Studied --------- Hvy. Particle Cannon | -8/Materials | Hacked Lgt. Treads | -8/Materials | Hacked Grenade Launcher | -8/Materials | Hacked Arm. Heavy Treads | -1/Access | Hacked Alien Tech Used ----------------- Transdimensional Reconstructor Integrated Reactor Achievements -------------- 20k Club 30k Club Botjacking Explosive Keycard Hot Goods Hot Stuff I Like You, Cogmind Preemptive Strike Window Shopping Challenges ------------ None Game ------ Seed AmuletFireDrillbomb Manual? 0 Play Time 04:30:04 Cumulative 117.1 hours Start 2025.12.10 @ 05:24:21 End 2025.12.10 @ 17:26:14 Sessions 1 Manual Loads 0 Difficulty Rogue Special Mode None Game No. 96 Rogue 96 Adventurer 0 Explorer 0 Win Type 0 Total 2 Types 2/0/0/0/0/0/0/0/0/0 Lore% 42 Gallery% 46 Achievement% 38 Wizard Run 0 Options --------- Layout 2 ASCII 0 Keyboard 0 Movement Mouse Keybinds 0 Fullscreen 2 Font 24/Smallcaps Map View 50x44 Zoom Use 0% Tactical HUD 1 Map Filters NONE Filters NONE Steam 1 RUN: c1c15a7b-c968-4526-b4ba-8523f2a60b63